[Event "106th British-ch Major 2019"]
[Site "Torquay"]
[Date "2019.08.03"]
[Round "8.30"]
[White "Morgan, Jamie"]
[Black "Fathallah, Joe"]
[Result "0-1"]
[ECO "C01"]
[WhiteElo "1894"]
[BlackElo "1952"]
[Annotator "NA"]
[PlyCount "96"]
[EventDate "2019.07.27"]
[EventType "swiss"]
[EventCountry "GBR"]
[SourceTitle "playchess.com"]
[Source "ChessBase"]
[SourceQuality "1"]
[TimeControl "40/5400+30:1800+30"]

1. e4 {[%emt 0:00:00]} e6 {[%emt 0:00:00]} 2. d4 {[%emt 0:00:00]} d5 {[%emt 0:00:00]} 3. exd5 {[%emt 0:00:17]} exd5 {[%emt 0:00:00]} 4. Nf3 {[%emt 0:00:10]} Nf6 {[%emt 0:00:00]} 5. Bd3 {[%emt 0:00:22]} Bd6 {[%emt 0:00:06]} 6. Qe2+ {[%emt 0:00:28]} Be6 {[%emt 0:06:19]} 7. c4 {[%emt 0:02:14]} O-O {[%emt 0:05:44]} 8. c5 {[%emt 0:03:02]} Be7 {[%emt 0:03:21]} 9. O-O {[%emt 0:00:35]} Bg4 {[%emt 0:02:22]} 10. h3 {[%emt 0:03:27]} Bh5 {[%emt 0:00:58]} 11. g4 {[%emt 0:08:29]} Bg6 {[%emt 0:01:44]} 12. Nc3 {[%emt 0:01:39]} c6 {[%emt 0:08:42]} 13. Ne5 {[%emt 0:07:19]} Bxd3 {[%emt 0:01:48]} 14. Qxd3 {[%emt 0:00:27]} Nbd7 {[%emt 0:03:07]} 15. f4 {[%emt 0:11:18]} Nxe5 {[%emt 0:01:48]} 16. fxe5 {[%emt 0:00:22]} Ne8 {[%emt 0:02:27]} 17. Bf4 {[%emt 0:14:37]} Nc7 {[%emt 0:02:07]} 18. Rae1 {[%emt 0:04:05]} Ne6 {[%emt 0:01:50]} 19. Be3 {[%emt 0:15:34]} b6 {[%emt 0:11:29]} 20. b4 {[%emt 0:02:54]} a5 {[%emt 0:02:05]} 21. a3 {[%emt 0:00:51]} axb4 {[%emt 0:00:23]} 22. axb4 {[%emt 0:00:09]} b5 {[%emt 0:01:17]} 23. Ra1 {[%emt 0:04:04]} Qd7 {[%emt 0:04:48]} 24. Rfd1 {[%emt 0:02:01]} Qb7 {[%emt 0:00:46]} 25. Qf1 {[%emt 0:01:22]} Rxa1 {[%emt 0:03:23]} 26. Rxa1 {[%emt 0:00:03]} Ra8 {[%emt 0:00:17]} 27. Kg2 {[%emt 0:04:45]} Rxa1 {[%emt 0:08:47]} 28. Qxa1 {[%emt 0:00:07]} f6 {[%emt 0:00:53]} 29. Ne2 {[%emt 0:01:07]} fxe5 {[%emt 0:06:09]} 30. dxe5 {[%emt 0:00:28]} Qd7 {[%emt 0:06:43]} 31. Qa8+ {[%emt 0:01:54]} Kf7 {[%emt 0:00:58]} 32. Nd4 {[%emt 0:00:26]} Nxd4 {[%emt 0:00:24]} 33. Bxd4 {[%emt 0:00:02]} Qe6 {[%emt 0:04:09]} 34. Qh8 {[%emt 0:01:55]} Qg6 {[%emt 0:03:17]} 35. e6+ {[%emt 0:00:55]} Kxe6 {[%emt 0:01:18]} 36. Qxg7 {[%emt 0:00:20]} Bg5 {[%emt 0:05:17]} 37. Qe5+ {[%emt 0:00:38]} Kd7 {[%emt 0:00:34]} 38. Bc3 {[%emt 0:02:04]} Bh4 {[%emt 0:01:17]} 39. Qf5+ {[%emt 0:03:18]} Qxf5 {[%emt 0:01:20]} 40. gxf5 {[%emt 0:00:02]} Ke7 {[%emt 0:00:27]} 41. Kf3 {[%emt 0:30:46]} Bf6 {[%emt 0:06:54]} 42. Bd2 {[%emt 0:00:00]} Bb2 {[%emt 0:00:46]} 43. Kg4 {[%emt 0:00:00]} Kf6 {[%emt 0:00:59]} 44. Kf4 {[%emt 0:00:00]} h5 {[%emt 0:01:16]} 45. Be1 {[%emt 0:00:00]} Be5+ {[%emt 0:00:33]} 46. Kf3 {[%emt 0:00:00]} Kxf5 {[%emt 0:00:11]} 47. Bd2 {[%emt 0:00:00]} Bb2 {[%emt 0:00:47]} 48. Be1 {[%emt 0:00:00]} d4 {[%emt 0:07:45]} 0-1

[Event "106th British-ch Major 2019"]
[Site "Torquay"]
[Date "2019.08.03"]
[Round "8.31"]
[White "Gogia, Armaan"]
[Black "Renshaw, Lucas"]
[Result "1-0"]
[ECO "C10"]
[WhiteElo "1754"]
[BlackElo "1596"]
[Annotator "NA"]
[PlyCount "49"]
[EventDate "2019.07.27"]
[EventType "swiss"]
[EventCountry "GBR"]
[SourceTitle "playchess.com"]
[Source "ChessBase"]
[SourceQuality "1"]
[TimeControl "40/5400+30:1800+30"]

1. e4 {[%emt 0:00:00]} e6 {[%emt 0:00:00]} 2. Nc3 {[%emt 0:00:00]} d5 {[%emt 0:00:05]} 3. d4 {[%emt 0:00:00]} dxe4 {[%emt 0:02:18]} 4. Nxe4 {[%emt 0:00:00]} Nf6 {[%emt 0:00:29]} 5. Bd3 {[%emt 0:01:25]} Nbd7 {[%emt 0:00:24]} 6. Nf3 {[%emt 0:00:08]} Nxe4 {[%emt 0:00:15]} 7. Bxe4 {[%emt 0:00:07]} Nf6 {[%emt 0:00:03]} 8. Bd3 {[%emt 0:00:02]} h6 {[%emt 0:00:51]} 9. O-O {[%emt 0:00:59]} Bd6 {[%emt 0:01:15]} 10. c4 {[%emt 0:00:40]} c5 {[%emt 0:01:00]} 11. Be3 {[%emt 0:05:06]} Ng4 {[%emt 0:04:57]} 12. d5 {[%emt 0:05:28]} Nxe3 {[%emt 0:01:40]} 13. fxe3 {[%emt 0:00:09]} exd5 {[%emt 0:03:32]} 14. cxd5 {[%emt 0:00:33]} O-O {[%emt 0:01:02]} 15. Qc2 {[%emt 0:03:20]} Qb6 {[%emt 0:05:14]} 16. Kh1 {[%emt 0:03:42]} Bd7 {[%emt 0:06:37]} 17. e4 {[%emt 0:02:42]} Qc7 {[%emt 0:02:36]} 18. Rae1 {[%emt 0:04:09]} Rae8 {[%emt 0:08:30]} 19. Qc3 {[%emt 0:05:22]} f6 {[%emt 0:04:54]} 20. b3 {[%emt 0:13:30]} Re5 {[%emt 0:06:32]} 21. Nxe5 {[%emt 0:02:14]} Bxe5 {[%emt 0:00:05]} 22. Qd2 {[%emt 0:00:11]} Bxh2 {[%emt 0:00:46]} 23. d6 {[%emt 0:00:17]} Bxd6 {[%emt 0:00:51]} 24. Bc4+ {[%emt 0:00:58]} Kh8 {[%emt 0:01:21]} 25. Rd1 {[%emt 0:00:13]} 1-0

[Event "106th British-ch Major 2019"]
[Site "Torquay"]
[Date "2019.08.03"]
[Round "8.32"]
[White "Miller, George"]
[Black "Hilton, Tim"]
[Result "1-0"]
[ECO "C18"]
[WhiteElo "1891"]
[BlackElo "1892"]
[Annotator "NA"]
[PlyCount "75"]
[EventDate "2019.07.27"]
[EventType "swiss"]
[EventCountry "GBR"]
[SourceTitle "playchess.com"]
[Source "ChessBase"]
[SourceQuality "1"]
[TimeControl "40/5400+30:1800+30"]

1. Nc3 {[%emt 0:00:00]} d5 {[%emt 0:06:16]} 2. e4 {[%emt 0:00:00]} e6 {[%emt 0:00:09]} 3. d4 {[%emt 0:01:00]} Bb4 {[%emt 0:00:44]} 4. e5 {[%emt 0:00:33]} c5 {[%emt 0:00:06]} 5. a3 {[%emt 0:00:11]} Bxc3+ {[%emt 0:00:06]} 6. bxc3 {[%emt 0:00:07]} Ne7 {[%emt 0:00:43]} 7. Qg4 {[%emt 0:00:46]} Qc7 {[%emt 0:00:17]} 8. Qxg7 {[%emt 0:02:09]} Rg8 {[%emt 0:00:06]} 9. Qxh7 {[%emt 0:00:19]} cxd4 {[%emt 0:00:05]} 10. Qd3 {[%emt 0:00:09]} Qxe5+ {[%emt 0:02:19]} 11. Ne2 {[%emt 0:00:18]} dxc3 {[%emt 0:02:57]} 12. Bf4 {[%emt 0:00:17]} Qf5 {[%emt 0:03:38]} 13. Qxf5 {[%emt 0:05:42]} Nxf5 {[%emt 0:00:38]} 14. Nxc3 {[%emt 0:00:10]} Nc6 {[%emt 0:00:50]} 15. O-O-O {[%emt 0:03:58]} Bd7 {[%emt 0:02:35]} 16. Nb5 {[%emt 0:01:08]} Rc8 {[%emt 0:07:06]} 17. Nd6+ {[%emt 0:00:10]} Nxd6 {[%emt 0:00:05]} 18. Bxd6 {[%emt 0:00:08]} Na5 {[%emt 0:02:18]} 19. h4 {[%emt 0:02:20]} Ba4 {[%emt 0:01:46]} 20. Bd3 {[%emt 0:02:39]} Kd7 {[%emt 0:07:51]} 21. Bg3 {[%emt 0:04:06]} Nc4 {[%emt 0:06:09]} 22. h5 {[%emt 0:00:27]} Nxa3 {[%emt 0:01:09]} 23. Rd2 {[%emt 0:01:32]} Nc4 {[%emt 0:04:08]} 24. Bxc4 {[%emt 0:00:07]} Rxc4 {[%emt 0:00:04]} 25. h6 {[%emt 0:00:07]} f6 {[%emt 0:00:47]} 26. Kb2 {[%emt 0:04:49]} Bc6 {[%emt 0:02:08]} 27. c3 {[%emt 0:00:42]} e5 {[%emt 0:02:42]} 28. f4 {[%emt 0:01:56]} e4 {[%emt 0:01:28]} 29. Bf2 {[%emt 0:01:00]} a6 {[%emt 0:02:39]} 30. g4 {[%emt 0:00:18]} Ke6 {[%emt 0:05:41]} 31. Bd4 {[%emt 0:01:09]} Rh8 {[%emt 0:02:34]} 32. g5 {[%emt 0:00:19]} Rxd4 {[%emt 0:00:52]} 33. cxd4 {[%emt 0:00:28]} Kf5 {[%emt 0:01:14]} 34. Rg2 {[%emt 0:00:43]} fxg5 {[%emt 0:00:56]} 35. fxg5 {[%emt 0:01:06]} Kg6 {[%emt 0:02:52]} 36. Rf1 {[%emt 0:00:52]} e3 {[%emt 0:02:15]} 37. Rf6+ {[%emt 0:10:41]} Kh5 {[%emt 0:00:06]} 38. Re6 {[%emt 0:00:19]} 1-0

[Event "106th British-ch Major 2019"]
[Site "Torquay"]
[Date "2019.08.03"]
[Round "8.33"]
[White "Ingham, H William"]
[Black "Sheikh, Anum"]
[Result "1/2-1/2"]
[ECO "A80"]
[WhiteElo "1854"]
[BlackElo "1693"]
[Annotator "NA"]
[PlyCount "60"]
[EventDate "2019.07.27"]
[EventType "swiss"]
[EventCountry "GBR"]
[SourceTitle "playchess.com"]
[Source "ChessBase"]
[SourceQuality "1"]
[TimeControl "40/5400+30:1800+30"]

1. d4 {[%emt 0:00:00]} f5 {[%emt 0:00:00]} 2. Nf3 {[%emt 0:00:00]} Nf6 {[%emt 0:00:00]} 3. Bg5 {[%emt 0:00:00]} g6 {[%emt 0:00:00]} 4. Bxf6 {[%emt 0:00:03]} exf6 {[%emt 0:00:00]} 5. Nbd2 {[%emt 0:01:18]} d5 {[%emt 0:00:23]} 6. e3 {[%emt 0:07:45]} Bg7 {[%emt 0:00:24]} 7. Bd3 {[%emt 0:00:10]} c6 {[%emt 0:00:58]} 8. c3 {[%emt 0:01:20]} Be6 {[%emt 0:00:53]} 9. Qc2 {[%emt 0:00:24]} Qc7 {[%emt 0:00:44]} 10. h3 {[%emt 0:07:12]} Nd7 {[%emt 0:04:34]} 11. b4 {[%emt 0:02:50]} a5 {[%emt 0:05:54]} 12. O-O {[%emt 0:02:20]} O-O {[%emt 0:02:55]} 13. Nb3 {[%emt 0:05:06]} b6 {[%emt 0:01:24]} 14. a3 {[%emt 0:08:33]} f4 {[%emt 0:11:50]} 15. e4 {[%emt 0:03:10]} dxe4 {[%emt 0:05:49]} 16. Bxe4 {[%emt 0:00:24]} f5 {[%emt 0:00:17]} 17. Ng5 {[%emt 0:03:41]} Rae8 {[%emt 0:15:02]} 18. Nxe6 {[%emt 0:04:21]} Rxe6 {[%emt 0:00:17]} 19. Bd3 {[%emt 0:00:10]} Kh8 {[%emt 0:00:32]} 20. Rfe1 {[%emt 0:00:38]} Rfe8 {[%emt 0:01:36]} 21. Rxe6 {[%emt 0:01:09]} Rxe6 {[%emt 0:00:05]} 22. Kf1 {[%emt 0:06:39]} c5 {[%emt 0:13:07]} 23. bxc5 {[%emt 0:06:22]} bxc5 {[%emt 0:00:11]} 24. Nxc5 {[%emt 0:00:49]} Nxc5 {[%emt 0:00:11]} 25. dxc5 {[%emt 0:00:14]} Qxc5 {[%emt 0:00:05]} 26. Rb1 {[%emt 0:03:09]} Bxc3 {[%emt 0:01:04]} 27. Rc1 {[%emt 0:03:58]} Rc6 {[%emt 0:02:08]} 28. a4 {[%emt 0:00:35]} Qd4 {[%emt 0:03:42]} 29. Bb5 {[%emt 0:01:59]} Rc5 {[%emt 0:01:57]} 30. Qd3 {[%emt 0:02:11]} Qxd3+ {[%emt 0:13:15]} 1/2-1/2

[Event "106th British-ch Major 2019"]
[Site "Torquay"]
[Date "2019.08.03"]
[Round "8.34"]
[White "May, Paul"]
[Black "Lim, Mark"]
[Result "1/2-1/2"]
[ECO "D36"]
[WhiteElo "1832"]
[BlackElo "2265"]
[Annotator "NA"]
[PlyCount "44"]
[EventDate "2019.07.27"]
[EventType "swiss"]
[EventCountry "GBR"]
[SourceTitle "playchess.com"]
[Source "ChessBase"]
[SourceQuality "1"]
[TimeControl "40/5400+30:1800+30"]

1. d4 {[%emt 0:55:05]} Nf6 {[%emt 0:00:04]} 2. c4 {[%emt 0:00:05]} e6 {[%emt 0:00:03]} 3. Nc3 {[%emt 0:00:05]} d5 {[%emt 0:00:04]} 4. Bg5 {[%emt 0:00:11]} c6 {[%emt 0:00:06]} 5. e3 {[%emt 0:00:45]} Be7 {[%emt 0:00:12]} 6. Nf3 {[%emt 0:01:59]} O-O {[%emt 0:00:08]} 7. Qc2 {[%emt 0:03:30]} Nbd7 {[%emt 0:00:07]} 8. cxd5 {[%emt 0:00:27]} exd5 {[%emt 0:00:22]} 9. Bd3 {[%emt 0:01:33]} Re8 {[%emt 0:00:19]} 10. O-O {[%emt 0:00:31]} Nf8 {[%emt 0:00:18]} 11. a3 {[%emt 0:04:27]} a5 {[%emt 0:00:40]} 12. Na4 {[%emt 0:02:49]} Ng6 {[%emt 0:07:39]} 13. Rfe1 {[%emt 0:21:30]} Ne4 {[%emt 0:03:11]} 14. Bxe7 {[%emt 0:01:35]} Qxe7 {[%emt 0:00:27]} 15. Nb6 {[%emt 0:06:09]} Rb8 {[%emt 0:04:59]} 16. Nxc8 {[%emt 0:01:07]} Rbxc8 {[%emt 0:00:56]} 17. Nd2 {[%emt 0:07:54]} Nh4 {[%emt 0:13:58]} 18. Nf1 {[%emt 0:18:01]} Qg5 {[%emt 0:06:32]} 19. Ng3 {[%emt 0:00:25]} f5 {[%emt 0:01:27]} 20. f4 {[%emt 0:02:22]} Qg6 {[%emt 0:03:50]} 21. Bxe4 {[%emt 0:00:13]} fxe4 {[%emt 0:03:04]} 22. b4 {[%emt 0:04:59]} axb4 {[%emt 0:02:46]} 1/2-1/2

[Event "106th British-ch Major 2019"]
[Site "Torquay"]
[Date "2019.08.03"]
[Round "8.35"]
[White "Mize, Dylan"]
[Black "Cowan, Richard M"]
[Result "0-1"]
[ECO "E90"]
[WhiteElo "1513"]
[BlackElo "1931"]
[Annotator "NA"]
[PlyCount "152"]
[EventDate "2019.07.27"]
[EventType "swiss"]
[EventCountry "GBR"]
[SourceTitle "playchess.com"]
[Source "ChessBase"]
[SourceQuality "1"]
[TimeControl "40/5400+30:1800+30"]

1. e4 {[%emt 0:00:00]} g6 {[%emt 0:02:51]} 2. d4 {[%emt 0:01:02]} Bg7 {[%emt 0:00:06]} 3. c4 {[%emt 0:00:23]} d6 {[%emt 0:01:11]} 4. Nf3 {[%emt 0:00:23]} Nf6 {[%emt 0:03:26]} 5. Nc3 {[%emt 0:00:27]} O-O {[%emt 0:03:53]} 6. Qc2 {[%emt 0:05:21]} Nbd7 {[%emt 0:17:45]} 7. h3 {[%emt 0:01:34]} c6 {[%emt 0:05:28]} 8. Be3 {[%emt 0:01:03]} a6 {[%emt 0:01:37]} 9. a4 {[%emt 0:08:58]} Qa5 {[%emt 0:02:06]} 10. Rb1 {[%emt 0:00:27]} Qc7 {[%emt 0:09:16]} 11. Bf4 {[%emt 0:11:18]} e5 {[%emt 0:01:19]} 12. dxe5 {[%emt 0:00:13]} dxe5 {[%emt 0:00:12]} 13. Be3 {[%emt 0:00:25]} Nh5 {[%emt 0:01:07]} 14. g3 {[%emt 0:07:47]} Re8 {[%emt 0:00:08]} 15. Qd2 {[%emt 0:01:55]} Nf8 {[%emt 0:04:03]} 16. Nh4 {[%emt 0:08:46]} Ne6 {[%emt 0:01:35]} 17. Be2 {[%emt 0:03:30]} Nhf4 {[%emt 0:04:36]} 18. f3 {[%emt 0:07:24]} Nxe2 {[%emt 0:03:13]} 19. Nxe2 {[%emt 0:03:23]} Rd8 {[%emt 0:00:11]} 20. Qc3 {[%emt 0:06:58]} Nd4 {[%emt 0:01:10]} 21. c5 {[%emt 0:10:21]} Qe7 {[%emt 0:10:22]} 22. Rd1 {[%emt 0:02:00]} Qf6 {[%emt 0:06:45]} 23. f4 {[%emt 0:05:02]} Be6 {[%emt 0:00:22]} 24. Nxd4 {[%emt 0:02:47]} exd4 {[%emt 0:00:12]} 25. Rxd4 {[%emt 0:00:34]} Rxd4 {[%emt 0:04:59]} 26. e5 {[%emt 0:00:06]} Rc4 {[%emt 0:01:09]} 27. exf6 {[%emt 0:02:15]} Rxc3 {[%emt 0:00:07]} 28. bxc3 {[%emt 0:00:07]} Bxf6 {[%emt 0:01:26]} 29. Bd4 {[%emt 0:00:58]} Re8 {[%emt 0:00:46]} 30. Kf2 {[%emt 0:01:18]} Kg7 {[%emt 0:04:34]} 31. Nf3 {[%emt 0:00:44]} a5 {[%emt 0:02:28]} 32. Rb1 {[%emt 0:02:04]} Re7 {[%emt 0:01:07]} 33. Ng5 {[%emt 0:02:31]} Bc4 {[%emt 0:01:04]} 34. Rb2 {[%emt 0:00:34]} h6 {[%emt 0:01:08]} 35. Nf3 {[%emt 0:00:26]} Ba6 {[%emt 0:04:01]} 36. Ne5 {[%emt 0:01:19]} Bxe5 {[%emt 0:00:25]} 37. Bxe5+ {[%emt 0:00:19]} f6 {[%emt 0:00:16]} 38. Bd4 {[%emt 0:00:49]} Kf7 {[%emt 0:00:23]} 39. Rd2 {[%emt 0:02:31]} Re4 {[%emt 0:00:22]} 40. h4 {[%emt 0:01:17]} Ke6 {[%emt 0:01:11]} 41. Kf3 {[%emt 0:10:07]} Re1 {[%emt 0:18:00]} 42. h5 {[%emt 0:04:32]} gxh5 {[%emt 0:02:10]} 43. Rh2 {[%emt 0:00:35]} Kf5 {[%emt 0:05:39]} 44. Rxh5+ {[%emt 0:01:56]} Kg6 {[%emt 0:00:05]} 45. g4 {[%emt 0:03:09]} Rf1+ {[%emt 0:05:23]} 46. Kg3 {[%emt 0:01:26]} Be2 {[%emt 0:00:34]} 47. Rf5 {[%emt 0:01:15]} Ra1 {[%emt 0:02:04]} 48. Rxf6+ {[%emt 0:00:24]} Kh7 {[%emt 0:00:06]} 49. Rf7+ {[%emt 0:00:37]} Kg8 {[%emt 0:00:15]} 50. Rg7+ {[%emt 0:02:52]} Kf8 {[%emt 0:00:12]} 51. Rxb7 {[%emt 0:00:09]} h5 {[%emt 0:00:13]} 52. gxh5 {[%emt 0:00:52]} Bxh5 {[%emt 0:00:11]} 53. Rc7 {[%emt 0:02:28]} Be8 {[%emt 0:00:07]} 54. Bg7+ {[%emt 0:00:36]} Kg8 {[%emt 0:00:12]} 55. Bd4 {[%emt 0:02:14]} Rxa4 {[%emt 0:00:15]} 56. Re7 {[%emt 0:00:48]} Bf7 {[%emt 0:00:49]} 57. Kh4 {[%emt 0:01:38]} Ra1 {[%emt 0:00:10]} 58. Kg5 {[%emt 0:00:11]} a4 {[%emt 0:01:29]} 59. Ra7 {[%emt 0:00:27]} Bb3 {[%emt 0:00:19]} 60. Kg6 {[%emt 0:00:44]} Kf8 {[%emt 0:01:20]} 61. Bf6 {[%emt 0:02:03]} Ke8 {[%emt 0:00:08]} 62. Re7+ {[%emt 0:00:41]} Kf8 {[%emt 0:00:11]} 63. Rd7 {[%emt 0:00:23]} Rg1+ {[%emt 0:00:06]} 64. Bg5 {[%emt 0:00:21]} Re1 {[%emt 0:02:16]} 65. Rd8+ {[%emt 0:00:27]} Re8 {[%emt 0:00:08]} 66. Bh6+ {[%emt 0:00:38]} Ke7 {[%emt 0:00:20]} 67. Bg5+ {[%emt 0:00:03]} Kf8 {[%emt 0:00:08]} 68. Rd7 {[%emt 0:01:41]} a3 {[%emt 0:01:32]} 69. Bh6+ {[%emt 0:00:15]} Kg8 {[%emt 0:00:20]} 70. Rg7+ {[%emt 0:00:13]} Kh8 {[%emt 0:00:10]} 71. Rh7+ {[%emt 0:00:23]} Kg8 {[%emt 0:00:04]} 72. f5 {[%emt 0:01:06]} a2 {[%emt 0:00:52]} 73. Rg7+ {[%emt 0:00:58]} Kh8 {[%emt 0:00:15]} 74. Ra7 {[%emt 0:00:50]} Rg8+ {[%emt 0:01:39]} 75. Kf6 {[%emt 0:00:37]} Rg1 {[%emt 0:00:36]} 76. Ra8+ {[%emt 0:00:19]} Kh7 {[%emt 0:00:26]} 0-1

[Event "106th British-ch Major 2019"]
[Site "Torquay"]
[Date "2019.08.04"]
[Round "9.1"]
[White "Clarke, Brandon Gi"]
[Black "Balaji, Aaravamudhan"]
[Result "1-0"]
[ECO "B06"]
[WhiteElo "2433"]
[BlackElo "2034"]
[Annotator "NA"]
[PlyCount "105"]
[EventDate "2019.07.27"]
[EventType "swiss"]
[EventCountry "GBR"]
[SourceTitle "playchess.com"]
[Source "ChessBase"]
[SourceQuality "1"]
[TimeControl "40/5400+30:1800+30"]

1. d4 {[%emt 0:00:04]} g6 {[%emt 0:00:00]} 2. e4 {[%emt 0:00:13]} Bg7 {[%emt 0:00:00]} 3. Nc3 {[%emt 0:12:26]} d5 {[%emt 0:00:00]} 4. exd5 {[%emt 0:10:28]} Nf6 {[%emt 0:00:02]} 5. Bc4 {[%emt 0:05:39]} Nbd7 {[%emt 0:00:02]} 6. Nf3 {[%emt 0:02:19]} Nb6 {[%emt 0:00:35] B06: Modern Defence} 7. Bb3 {[%emt 0:02:57]} Nbxd5 {[%emt 0:00:43]} (7... O-O 8. O-O a5 9. a4 Nbxd5 10. Nxd5 Nxd5 11. h3 c6 12. Re1 Be6 13. Ng5 Bf5 14. c3 {½-½ (60) Fedorchuk,S (2604)-Chatalbashev,B (2546) Ferreira do Alentejo 2018}) 8. Ne2 {[%emt 0:02:19]} a5 {[%emt 0:04:45]} 9. a3 {[%emt 0:01:51]} a4 {[%emt 0:06:23]} 10. Ba2 {[%emt 0:00:09]} O-O {[%emt 0:01:50]} 11. O-O {[%emt 0:00:25]} b5 {[%emt 0:04:37]} 12. Re1 $146 {[%emt 0:02:32]} ({Predecessor:} 12. Bg5 Ne4 13. Bh4 Bb7 14. Re1 {1-0 (42) Mueller,M (2192)-Hille,R (2181) Germany 2006}) 12... Bb7 {[%emt 0:04:04]} 13. Nf4 {[%emt 0:09:25]} Qd6 {[%emt 0:07:11]} 14. Nd3 {[%emt 0:01:09]} Nd7 {[%emt 0:01:17]} 15. Bg5 {[%emt 0:09:46]} Rfe8 {[%emt 0:09:14]} 16. c3 {[%emt 0:14:48]} c5 {[%emt 0:06:48]} 17. dxc5 {[%emt 0:07:32]} Nxc5 {[%emt 0:00:15]} 18. Nxc5 {[%emt 0:03:54]} Qxc5 {[%emt 0:00:01]} 19. Bxd5 {[%emt 0:03:39]} Bxd5 {[%emt 0:09:53]} 20. Rxe7 {[%emt 0:02:35]} Red8 {[%emt 0:05:10]} 21. Qe2 {[%emt 0:00:02]} h6 {[%emt 0:10:18]} 22. Bh4 {[%emt 0:01:33]} g5 {[%emt 0:01:01]} 23. Bg3 {[%emt 0:00:11]} Bxf3 $14 {[%emt 0:09:02]} (23... Bc4 $11 24. Qe3 Qxe3 25. Rxe3 g4) 24. gxf3 {[%emt 0:00:02]} Qf5 {[%emt 0:02:42]} 25. Kg2 {[%emt 0:01:09]} h5 {[%emt 0:00:52]} 26. h3 {[%emt 0:00:04]} h4 {[%emt 0:01:29]} 27. Bh2 {[%emt 0:00:01]} Rd3 {[%emt 0:01:00]} 28. Re1 {[%emt 0:01:05]} Bf6 {[%emt 0:00:53]} 29. Qe4 {[%emt 0:00:52]} Qxe4 {[%emt 0:00:59]} 30. R7xe4 {[%emt 0:00:02]} Rad8 {[%emt 0:01:19]} 31. R1e2 {[%emt 0:00:11]} R8d5 {[%emt 0:00:57]} 32. f4 {[%emt 0:01:42]} g4 {[%emt 0:01:46]} 33. hxg4 {[%emt 0:00:36]} h3+ {[%emt 0:00:03]} 34. Kf1 {[%emt 0:00:02]} Bh4 {[%emt 0:04:57]} 35. f5 {[%emt 0:03:30]} Rf3 {[%emt 0:01:43]} 36. Rc2 {[%emt 0:01:04]} Rfd3 {[%emt 0:01:23]} 37. Ke2 {[%emt 0:01:06]} Bg5 {[%emt 0:01:49]} 38. f4 {[%emt 0:01:06]} Bh4 {[%emt 0:01:38]} 39. Re3 {[%emt 0:00:20]} Rxe3+ {[%emt 0:01:29]} 40. Kxe3 {[%emt 0:00:01]} Rd1 {[%emt 0:00:55]} 41. g5 {[%emt 0:02:48]} Rd5 {[%emt 0:01:36]} 42. Kf3 {[%emt 0:02:02]} Be1 {[%emt 0:00:38]} 43. Re2 {[%emt 0:05:56]} Rd1 {[%emt 0:03:24]} 44. f6 {[%emt 0:03:20]} Bd2 {[%emt 0:01:38]} 45. Kg4 {[%emt 0:05:04]} Bc1 {[%emt 0:00:48]} 46. f5 {[%emt 0:01:01]} Rd2 {[%emt 0:01:04]} 47. Re8+ {[%emt 0:01:42]} Kh7 {[%emt 0:00:01]} 48. g6+ {[%emt 0:00:56]} fxg6 {[%emt 0:00:12]} 49. Re7+ {[%emt 0:00:00]} Kg8 {[%emt 0:00:39]} 50. fxg6 {[%emt 0:00:21]} Rg2+ {[%emt 0:01:00]} 51. Bg3 {[%emt 0:00:02]} Bh6 {[%emt 0:00:37]} 52. Re8+ {[%emt 0:00:38]} Bf8 {[%emt 0:00:02]} 53. Kxh3 {[%emt 0:00:31]} 1-0

[Event "106th British-ch Major 2019"]
[Site "Torquay"]
[Date "2019.08.04"]
[Round "9.2"]
[White "Taylor, Adam A"]
[Black "Turner, Max N"]
[Result "1/2-1/2"]
[ECO "A11"]
[WhiteElo "2168"]
[BlackElo "2026"]
[Annotator "NA"]
[PlyCount "84"]
[EventDate "2019.07.27"]
[EventType "swiss"]
[EventCountry "GBR"]
[SourceTitle "playchess.com"]
[Source "ChessBase"]
[SourceQuality "1"]
[TimeControl "40/5400+30:1800+30"]

1. Nf3 {[%emt 0:03:28]} d5 {[%emt 0:00:00]} 2. c4 {[%emt 0:00:09]} c6 {[%emt 0:00:00]} 3. g3 {[%emt 0:00:12]} Nf6 {[%emt 0:00:00]} 4. Bg2 {[%emt 0:00:06]} Bf5 {[%emt 0:00:53]} 5. cxd5 {[%emt 0:04:00]} cxd5 {[%emt 0:00:06]} 6. d3 {[%emt 0:00:51]} Nc6 {[%emt 0:01:01]} 7. Bf4 {[%emt 0:02:37]} Qb6 {[%emt 0:05:31]} 8. Qd2 {[%emt 0:18:15]} e5 {[%emt 0:07:39]} 9. Nxe5 {[%emt 0:00:03]} Bb4 {[%emt 0:00:22]} 10. Nc3 {[%emt 0:00:03]} d4 {[%emt 0:00:38]} 11. Nxc6 {[%emt 0:00:44]} bxc6 {[%emt 0:01:10]} 12. O-O {[%emt 0:00:06]} dxc3 {[%emt 0:02:11]} 13. bxc3 {[%emt 0:00:03]} Be7 {[%emt 0:02:11]} 14. Rab1 {[%emt 0:00:09]} Qa6 {[%emt 0:00:38]} 15. e4 {[%emt 0:02:04]} Be6 {[%emt 0:04:16]} 16. Be5 {[%emt 0:03:33]} O-O {[%emt 0:02:10]} 17. f4 {[%emt 0:02:18]} Rfd8 {[%emt 0:31:42]} 18. d4 {[%emt 0:03:39]} Bc4 {[%emt 0:04:44]} 19. Bxf6 {[%emt 0:00:24]} Bxf6 {[%emt 0:00:19]} 20. Rf2 {[%emt 0:00:02]} Rab8 {[%emt 0:02:17]} 21. Re1 {[%emt 0:00:04]} h6 {[%emt 0:00:59]} 22. e5 {[%emt 0:01:01]} Be7 {[%emt 0:00:10]} 23. f5 {[%emt 0:00:10]} Bg5 {[%emt 0:07:40]} 24. Qd1 {[%emt 0:00:54]} Bxa2 {[%emt 0:00:34]} 25. Bf1 {[%emt 0:01:22]} Bc4 {[%emt 0:02:03]} 26. h4 {[%emt 0:00:05]} Be7 {[%emt 0:01:29]} 27. f6 {[%emt 0:00:21]} Bf8 {[%emt 0:01:00]} 28. e6 {[%emt 0:00:04]} fxe6 {[%emt 0:01:09]} 29. f7+ {[%emt 0:00:09]} Kh8 {[%emt 0:00:09]} 30. Rxe6 {[%emt 0:00:10]} Bxf1 {[%emt 0:01:21]} 31. Qg4 {[%emt 0:00:41]} Rd6 {[%emt 0:00:18]} 32. Rff6 {[%emt 0:06:39]} Rxe6 {[%emt 0:01:36]} 33. Rxe6 {[%emt 0:00:14]} g5 {[%emt 0:01:30]} 34. Qh5 {[%emt 0:06:39]} Bd3 {[%emt 0:13:20]} 35. Rxh6+ {[%emt 0:00:22]} Kg7 {[%emt 0:00:11]} 36. Qxg5+ {[%emt 0:05:30]} Kxf7 {[%emt 0:00:09]} 37. Rf6+ {[%emt 0:18:43]} Ke8 {[%emt 0:01:03]} 38. Qe5+ {[%emt 0:10:47]} Be7 {[%emt 0:03:24]} 39. Qxb8+ {[%emt 0:00:16]} Kd7 {[%emt 0:00:06]} 40. Rf2 {[%emt 0:01:49]} Be4 {[%emt 0:02:00]} 41. Kh2 {[%emt 0:34:00]} Bd5 {[%emt 0:31:20]} 42. Rb2 {[%emt 0:06:01]} c5 {[%emt 0:00:00]} 1/2-1/2